fUST/lending_fUST_20250801
["ID","MTS","AMOUNT","RATE_DAILY","PERIOD"]
[376543485,1754013062713,-152.0,0.00026478,3]
[376543486,1754013062724,-152.0,0.00026478,3]
[376543487,1754013062733,-152.0,0.00026478,3]
[376543488,1754013062743,-152.0,0.00026478,3]
[376543489,1754013062752,-152.0,0.00026478,3]
[376543490,1754013062762,-152.0,0.00026478,3]
[376543491,1754013062771,-152.0,0.00026478,3]
[376543492,1754013062780,-152.0,0.00026478,3]
[376543493,1754013062790,-152.0,0.00026478,3]
[376543494,1754013062800,-152.0,0.00026478,3]
[376543495,1754013062809,-152.0,0.00026478,3]
[376543496,1754013062822,-152.0,0.00026478,3]
[376543497,1754013062832,-152.0,0.00026478,3]
[376543498,1754013062842,-152.0,0.00026478,3]
[376543499,1754013062853,-152.0,0.00026478,3]
[376543500,1754013062864,-152.0,0.00026478,3]
[376543501,1754013062874,-152.0,0.00026478,3]
[376543502,1754013062883,-154.23299487,0.00026478,3]
[376543503,1754013062893,-660.0,0.00026479,2]
[376543504,1754013062903,-151.0,0.00026492,7]
[376543505,1754013062912,-151.0,0.00026492,7]
[376543506,1754013062922,-151.0,0.00026492,7]
[376543507,1754013062931,-151.0,0.00026492,7]
[376543508,1754013062941,-151.0,0.00026492,7]
[376543509,1754013062950,-151.0,0.00026492,7]
[376543510,1754013062960,-151.0,0.00026492,7]
[376543511,1754013062970,-151.0,0.00026492,7]
[376543512,1754013062979,-151.0,0.00026492,7]
[376543513,1754013062988,-151.0,0.00026492,7]
[376543514,1754013062997,-151.0,0.00026492,7]
[376543515,1754013063007,-151.0,0.00026492,7]
[376543516,1754013063016,-151.0,0.00026492,7]
[376543517,1754013063026,-151.0,0.00026492,7]
[376543518,1754013063035,-151.0,0.00026492,7]
[376543519,1754013063045,-151.0,0.00026492,7]
[376543520,1754013063055,-151.0,0.00026492,7]
[376543521,1754013063064,-151.0,0.00026492,7]
[376543522,1754013063074,-156.028337,0.00026492,7]
[376543523,1754013063083,-151.0,0.00026492,7]
[376543524,1754013063093,-151.0,0.00026492,7]
[376543525,1754013063102,-151.0,0.00026492,7]
[376543526,1754013063112,-153.052496,0.00026492,7]
[376543527,1754013063122,-151.0,0.00026492,7]
[376543528,1754013063131,-151.0,0.00026492,7]
[376543529,1754013063141,-151.0,0.00026492,7]
[376543530,1754013063150,-151.0,0.00026492,7]
[376543531,1754013063159,-151.0,0.00026492,7]
[376543532,1754013063169,-151.0,0.00026492,7]
[376543533,1754013063180,-151.0,0.00026492,7]
[376543534,1754013063190,-151.0,0.00026492,7]
[376543535,1754013063199,-151.0,0.00026492,7]
[376543536,1754013063209,-221.595959,0.00026492,7]
[376543537,1754013063219,-151.0,0.00026492,7]
[376543538,1754013063228,-151.0,0.00026492,7]
[376543539,1754013063237,-151.0,0.00026492,7]
[376543540,1754013063247,-151.0,0.00026492,7]
[376543541,1754013063257,-151.0,0.00026492,7]
[376543542,1754013063266,-151.0,0.00026492,7]
[376543543,1754013063277,-151.0,0.00026492,7]
[376543544,1754013063286,-151.0,0.00026492,7]
[376543545,1754013063295,-151.0,0.00026492,7]
[376543546,1754013063305,-151.0,0.00026492,7]
[376543547,1754013063314,-151.0,0.00026492,7]
[376543548,1754013063324,-295.869669,0.00026492,7]
[376543549,1754013063333,-151.0,0.00026492,7]
[376543550,1754013063342,-151.0,0.00026492,7]
[376543551,1754013063352,-151.0,0.00026492,7]
[376543552,1754013063362,-151.0,0.00026492,7]
[376543553,1754013063371,-151.0,0.00026492,7]
[376543554,1754013063381,-152.967207,0.00026492,7]
[376543555,1754013063391,-174.604177,0.00026492,7]
[376543556,1754013063401,-174.604177,0.00026492,7]
[376543557,1754013063410,-174.604177,0.00026492,7]
[376543558,1754013063420,-174.604177,0.00026492,7]
[376543559,1754013063429,-174.604177,0.00026492,7]
[376543560,1754013063439,-174.604177,0.00026492,7]
[376543561,1754013063448,-174.604177,0.00026492,7]
[376543562,1754013063458,-174.604177,0.00026492,7]
[376543563,1754013063467,-174.604177,0.00026492,7]
[376543564,1754013063479,-174.604177,0.00026492,7]
[376543565,1754013063488,-174.604177,0.00026492,7]
[376543566,1754013063498,-174.604177,0.00026492,7]
[376543567,1754013063508,-174.604177,0.00026492,7]
[376543568,1754013063518,-174.604177,0.00026492,7]
[376543569,1754013063528,-174.604177,0.00026492,7]
[376543570,1754013063538,-174.604177,0.00026492,7]
[376543571,1754013063547,-174.604177,0.00026492,7]
[376543572,1754013063557,-174.604172,0.00026492,7]
[376543573,1754013063567,-160.1872996,0.00026493,2]
[376543574,1754013063576,-578.4830312,0.00026493,2]
[376543575,1754013063586,-178.5305504,0.00026493,2]
[376543576,1754013063596,-160.1872996,0.00026493,2]
[376543577,1754013063605,-578.4830312,0.00026493,2]
[376543578,1754013063614,-178.5305504,0.00026493,2]
[376543579,1754013063624,-160.1872996,0.00026493,2]
[376543580,1754013063637,-178.5305504,0.00026493,2]
[376543581,1754013063646,-578.4830312,0.00026493,2]
[376543582,1754013063655,-160.1872996,0.00026493,2]
[376543583,1754013063665,-178.5305504,0.00026493,2]
[376543584,1754013063674,-578.4830312,0.00026493,2]
[376543585,1754013063683,-160.1872996,0.00026493,2]
[376543586,1754013063693,-178.5305504,0.00026493,2]
[376543587,1754013063702,-578.4830312,0.00026493,2]
[376543588,1754013063712,-160.1872996,0.00026493,2]
[376543589,1754013063722,-177.979271,0.00026493,2]
[376543590,1754013063731,-578.4830312,0.00026493,2]
[376543591,1754013063741,-160.1872996,0.00026493,2]
[376543592,1754013063751,-578.4830312,0.00026493,2]
[376543593,1754013063760,-160.1872996,0.00026493,2]
[376543594,1754013063770,-2000.0,0.000265,2]
[376543595,1754013063780,-160.0,0.000265,7]
[376543596,1754013063790,-189.97363,0.000265,2]
[376543597,1754013063800,-7892.15,0.000265,7]
[376543598,1754013063811,-286619.85375189,0.00026504,20]
[376543599,1754013063909,-688.71,0.00022137,2]
[376543600,1754013063919,-688.71,0.00022411,2]
[376543601,1754013063930,-8769.8025419,0.00026504,20]
[376543602,1754013064368,-302.13073744,0.00022148,2]
[376543603,1754013064381,-217.86926256,0.00022148,2]
[376543604,1754013064390,-460.0,0.00022148,2]
[376543605,1754013064399,-460.0,0.00022188,2]
[376543606,1754013064408,-1048.25,0.00022412,10]
[376543607,1754013064418,-460.0,0.00022422,2]
[376543608,1754013064427,-460.0,0.00022462,2]
[376543609,1754013064438,-688.71,0.00022685,2]
[376543610,1754013064447,-460.0,0.00022696,2]
[376543611,1754013064457,-460.0,0.00022736,2]
[376543612,1754013064467,-688.71,0.00022959,2]
[376543613,1754013064478,-460.0,0.0002297,2]
[376543614,1754013064488,-319.76274166,0.0002301,2]
[376543615,1754013064500,-140.23725834,0.0002301,2]
[376543616,1754013064510,-688.71,0.00023233,2]
[376543617,1754013064520,-460.0,0.00023244,2]
[376543618,1754013064529,-688.71,0.00023507,2]
[376543619,1754013064538,-460.0,0.00023518,2]
[376543620,1754013064548,-688.71,0.00023781,2]
[376543621,1754013064557,-460.0,0.00023792,2]
[376543622,1754013064566,-688.71,0.00024055,2]
[376543623,1754013064575,-161.55044077,0.00024066,2]
[376543624,1754013064588,-298.44955923,0.00024066,2]
[376543625,1754013064598,-688.71,0.00024329,2]
[376543626,1754013064607,-334.71746529,0.00024338,2]
[376543627,1754013064618,-670.79689604,0.00024338,2]
[376543628,1754013064629,-429.35548269,0.00024338,2]
[376543629,1754013064640,-1929.67523744,0.00024338,2]
[376543635,1754013922252,1217.2344014,0.00026522,120]
[376543637,1754014027111,5000.0,0.0001901,6]
[376543638,1754014046573,897.29815496,0.0001901,6]
[376543640,1754014051888,281.678409,0.00013699,2]
[376543643,1754014166511,-184.67335331,0.00019178,3]
[376543644,1754014166532,-1000.0,0.00019614,2]
[376543645,1754014166553,-165.38473,0.0001972,2]
[376543646,1754014166575,-666.0,0.00019967,2]
[376543647,1754014166594,-160.0,0.0002,3]
[376543648,1754014166614,-160.0,0.0002,3]
[376543649,1754014166637,-180.16616271,0.00020105,2]
[376543650,1754014166659,-281.678409,0.00020187,2]
[376543651,1754014166678,-508.57,0.000206,2]
[376543652,1754014166697,-160.0,0.00020913,2]
[376543653,1754014166718,-153.716277,0.0002092,6]
[376543654,1754014166737,-1200.0,0.00020932,2]
[376543655,1754014166756,-300.0,0.00020932,2]
[376543656,1754014166775,-312.19149597,0.00020933,2]
[376543657,1754014166799,-461.64889496,0.00020933,2]
[376543658,1754014166822,-460.0,0.00020933,2]
[376543659,1754014166842,-524.04,0.00020933,2]
[376543660,1754014166863,-1788.16,0.00020933,2]
[376543661,1754014166882,-286.0,0.00020999,2]
[376543662,1754014166902,-3000.0,0.00021,2]
[376543663,1754014166922,-460.0,0.00021007,2]
[376543664,1754014166941,-3000.0,0.0002101,2]
[376543665,1754014166965,-205.59924829,0.00021018,2]
[376543666,1754014166985,-460.99643381,0.00021018,2]
[376543667,1754014167008,-2629.49,0.00021018,2]
[376543668,1754014167034,-4792.18,0.00021018,2]
[376543669,1754014167056,-578.56,0.00021018,2]
[376543670,1754014167076,-460.0,0.00021018,2]
[376543671,1754014167096,-460.0,0.00021018,2]
[376543672,1754014167117,-460.0,0.00021018,2]
[376543673,1754014167139,-2282.47,0.00021018,2]
[376543674,1754014167160,-460.0,0.00021018,2]
[376543675,1754014167182,-460.0,0.00021018,2]
[376543676,1754014167206,-460.0,0.00021018,2]
[376543677,1754014167227,-2368.28,0.00021018,2]
[376543678,1754014167248,-460.0,0.00021018,2]
[376543679,1754014167270,-609.28,0.00021018,2]
[376543680,1754014167291,-460.0,0.00021018,2]
[376543681,1754014167311,-3000.0,0.0002102,2]
[376543682,1754014167331,-3000.0,0.0002103,2]
[376543683,1754014167368,-500.0,0.00021035,2]
[376543684,1754014167388,-453.34,0.00021039,10]
[376543685,1754014167408,-797.98,0.00021039,10]
[376543686,1754014167427,-664.99,0.00021039,10]
[376543687,1754014167447,-554.16,0.00021039,10]
[376543688,1754014167467,-3000.0,0.0002104,2]
[376543689,1754014167488,-461.96581813,0.00021048,2]
[376543690,1754014167508,-271.82039657,0.00021048,2]
[376543691,1754014167527,-460.0,0.00021049,2]
[376543692,1754014167548,-460.0,0.00021049,2]
[376543693,1754014167568,-460.0,0.00021049,2]
[376543694,1754014167587,-460.0,0.00021049,2]
[376543695,1754014167607,-460.0,0.00021049,2]
[376543696,1754014167627,-460.0,0.00021049,2]
[376543697,1754014167647,-460.0,0.00021049,2]
[376543698,1754014167668,-465.17679717,0.00021049,2]
[376543699,1754014167687,-460.0,0.00021049,2]
[376543700,1754014167707,-460.0,0.00021049,2]
[376543701,1754014167726,-460.0,0.00021049,2]
[376543702,1754014167745,-459.78457199,0.00021049,2]
[376543703,1754014167764,-460.0,0.00021049,2]
[376543704,1754014167785,-460.0,0.00021049,2]
[376543705,1754014167805,-460.0,0.00021049,2]
[376543706,1754014167825,-463.65306547,0.00021049,2]
[376543707,1754014167845,-463.45940744,0.00021049,2]
[376543708,1754014167865,-462.84788971,0.00021049,2]
[376543709,1754014167889,-462.51170898,0.00021049,2]
[376543710,1754014167910,-460.96933694,0.00021049,2]
[376543711,1754014167929,-461.26449407,0.00021049,2]
[376543712,1754014167949,-460.0,0.00021049,2]
[376543713,1754014167969,-460.79501396,0.00021049,2]
[376543714,1754014167989,-460.0,0.00021049,2]
[376543715,1754014168008,-462.28746216,0.00021049,2]
[376543716,1754014168028,-460.0,0.00021049,2]
[376543717,1754014168047,-461.34145049,0.00021049,2]
[376543718,1754014168073,-460.0,0.00021049,2]
[376543719,1754014168099,-460.0,0.00021049,2]
[376543720,1754014168119,-524.6208313,0.00021049,2]
[376543721,1754014168139,-589.42407465,0.00021049,2]
[376543722,1754014168159,-465.20275503,0.00021049,2]
[376543723,1754014168178,-460.0,0.00021049,2]
[376543724,1754014168202,-460.0,0.00021049,2]
[376543725,1754014168221,-460.0,0.00021049,2]
[376543726,1754014168242,-461.8071806,0.00021049,2]
[376543727,1754014168262,-461.54313889,0.00021049,2]
[376543728,1754014168282,-461.31788662,0.00021049,2]
[376543729,1754014168302,-460.0,0.00021049,2]
[376543730,1754014168321,-336.21573555,0.00021049,2]
[376543731,1754014168341,-468.60981252,0.00021049,2]
[376543732,1754014168362,-161.8942032,0.00021049,2]
[376543733,1754014168381,-468.11104998,0.00021049,2]
[376543734,1754014168400,-460.0,0.00021049,2]
[376543735,1754014168421,-468.13765762,0.00021049,2]
[376543736,1754014168444,-460.0,0.00021049,2]
[376543737,1754014168465,-460.0,0.00021049,2]
[376543738,1754014168486,-466.34129964,0.00021049,2]
[376543739,1754014168506,-460.0,0.00021049,2]
[376543740,1754014168526,-468.29590393,0.00021049,2]
[376543741,1754014168546,-460.0,0.00021049,2]
[376543742,1754014168565,-477.72219817,0.00021049,2]
[376543743,1754014168584,-556.64084145,0.00021049,2]
[376543744,1754014168747,-469.28769235,0.00021049,2]
[376543745,1754014168768,-471.00046405,0.00021049,2]
[376543746,1754014168788,-460.0,0.00021049,2]
[376543747,1754014168808,-465.885054,0.00021049,2]
[376543748,1754014168828,-460.0,0.00021049,2]
[376543749,1754014168851,-460.0,0.00021049,2]
[376543750,1754014168871,-468.27182095,0.00021049,2]
[376543751,1754014168891,-460.0,0.00021049,2]
[376543752,1754014168915,-460.0,0.00021049,2]
[376543753,1754014168934,-463.01254367,0.00021049,2]
[376543754,1754014168955,-551.33247563,0.00021049,2]
[376543755,1754014168975,-460.0,0.00021049,2]
[376543756,1754014168994,-460.0,0.00021049,2]
[376543757,1754014169016,-460.0,0.00021049,2]
[376543758,1754014169037,-461.73060415,0.00021049,2]
[376543759,1754014169060,-458.61370954,0.00021049,2]
[376543760,1754014169079,-465.53137373,0.00021049,2]
[376543761,1754014169099,-466.0899384,0.00021049,2]
[376543762,1754014169118,-464.98904611,0.00021049,2]
[376543763,1754014169137,-469.73675667,0.00021049,2]
[376543764,1754014169161,-460.0,0.00021049,2]
[376543765,1754014169181,-472.56764066,0.00021049,2]
[376543766,1754014169206,-464.14,0.00021049,2]
[376543767,1754014169226,-178.48671199,0.00021049,2]
[376543768,1754014169246,-461.19,0.00021049,2]
[376543769,1754014169266,-460.0,0.00021049,2]
[376543770,1754014169287,-460.49313684,0.00021049,2]
[376543771,1754014169307,-460.0,0.00021049,2]
[376543772,1754014169326,-462.4216151,0.00021049,2]
[376543773,1754014169347,-661.57,0.00021049,2]
[376543774,1754014169368,-460.0,0.00021049,2]
[376543775,1754014169388,-486.7,0.00021049,2]
[376543776,1754014169411,-464.81237074,0.00021049,2]
[376543777,1754014169431,-460.0,0.00021049,2]
[376543778,1754014169450,-461.66077866,0.00021049,2]
[376543779,1754014169470,-460.0,0.00021049,2]
[376543780,1754014169490,-460.0,0.00021049,2]
[376543781,1754014169511,-460.0,0.00021049,2]
[376543782,1754014169531,-460.0,0.00021049,2]
[376543783,1754014169550,-460.0,0.00021049,2]
[376543784,1754014169570,-460.0,0.00021049,2]
[376543785,1754014169590,-460.0,0.00021049,2]
[376543786,1754014169610,-460.0,0.00021049,2]
[376543787,1754014169630,-460.0,0.00021049,2]
[376543788,1754014169649,-460.0,0.00021049,2]
[376543789,1754014169672,-460.0,0.00021049,2]
[376543790,1754014169691,-460.0,0.00021049,2]
[376543791,1754014169711,-463.52442609,0.00021049,2]
[376543792,1754014169730,-460.0,0.00021049,2]
[376543793,1754014169749,-425.90823605,0.00021049,2]
[376543794,1754014169768,-460.0,0.00021049,2]
[376543795,1754014169788,-460.0,0.00021049,2]
[376543796,1754014169807,-460.0,0.00021049,2]
[376543797,1754014169827,-460.0,0.00021049,2]
[376543798,1754014169847,-460.0,0.00021049,2]
[376543799,1754014169868,-460.0,0.00021049,2]
[376543800,1754014169888,-618.37,0.00021049,2]
[376543801,1754014169911,-648.07,0.00021049,2]
[376543802,1754014169931,-462.22356458,0.00021049,2]
[376543803,1754014169951,-460.0,0.00021049,2]
[376543804,1754014169971,-463.64080844,0.00021049,2]
[376543805,1754014169992,-461.22916293,0.00021049,2]
[376543806,1754014170013,-462.04115351,0.00021049,2]
[376543807,1754014170035,-460.0,0.00021049,2]
[376543808,1754014170058,-460.0,0.00021049,2]
[376543809,1754014170085,-460.0,0.00021049,2]
[376543810,1754014170105,-460.71180212,0.00021049,2]
[376543811,1754014170127,-460.0,0.00021049,2]
[376543812,1754014170146,-460.0,0.00021049,2]
[376543813,1754014170168,-460.77485515,0.00021049,2]
[376543814,1754014170189,-612.49,0.00021049,2]
[376543815,1754014170208,-460.0,0.00021049,2]
[376543816,1754014170230,-460.9512279,0.00021049,2]
[376543817,1754014170250,-460.0,0.00021049,2]
[376543818,1754014170274,-460.0,0.00021049,2]
[376543819,1754014170295,-581.18,0.00021049,2]
[376543820,1754014170314,-523.66908165,0.00021049,2]
[376543821,1754014170333,-462.7247496,0.00021049,2]
[376543822,1754014170354,-887.31,0.00021049,2]
[376543823,1754014170373,-461.31026404,0.00021049,2]
[376543824,1754014170392,-461.40144898,0.00021049,2]
[376543825,1754014170416,-463.75655521,0.00021049,2]
[376543826,1754014170436,-460.0,0.00021049,2]
[376543827,1754014170455,-516.484304,0.00021049,2]
[376543828,1754014170474,-461.63301957,0.00021049,2]
[376543829,1754014170495,-460.0,0.00021049,2]
[376543830,1754014170515,-206.14,0.00021049,2]
[376543831,1754014170535,-460.0,0.00021049,2]
[376543832,1754014170554,-460.0,0.00021049,2]
[376543833,1754014170573,-461.354073,0.00021049,2]
[376543834,1754014170592,-461.75223714,0.00021049,2]
[376543835,1754014170612,-460.0,0.00021049,2]
[376543836,1754014170631,-461.46294869,0.00021049,2]
[376543837,1754014170651,-460.0,0.00021049,2]
[376543838,1754014170675,-460.0,0.00021049,2]
[376543839,1754014170694,-460.0,0.00021049,2]
[376543840,1754014170713,-460.0,0.00021049,2]
[376543841,1754014170732,-460.0,0.00021049,2]
[376543842,1754014170751,-460.0,0.00021049,2]
[376543843,1754014170771,-460.0,0.00021049,2]
[376543844,1754014170791,-462.61966201,0.00021049,2]
[376543845,1754014170815,-467.65380363,0.00021049,2]
[376543846,1754014170836,-160.81085803,0.00021049,2]
[376543847,1754014170860,-460.0,0.00021049,2]
[376543848,1754014170879,-155.99601206,0.00021049,2]
[376543849,1754014170899,-461.44388571,0.00021049,2]
[376543850,1754014170924,-298.85729654,0.00021049,2]
[376543851,1754014170945,-461.40693788,0.00021049,2]
[376543852,1754014170965,-460.0,0.00021049,2]
[376543853,1754014170986,-460.0,0.00021049,2]
[376543854,1754014171005,-460.0,0.00021049,2]
[376543855,1754014171024,-460.0,0.00021049,2]
[376543856,1754014171044,-460.0,0.00021049,2]
[376543857,1754014171064,-547.26,0.00021049,2]
[376543858,1754014171084,-460.0,0.00021049,2]
[376543859,1754014171104,-460.0,0.00021049,2]
[376543860,1754014171123,-464.93498368,0.00021049,2]
[376543861,1754014171142,-460.0,0.00021049,2]
[376543862,1754014171162,-268.99880879,0.00021049,2]
[376543863,1754014171182,-3000.0,0.0002105,2]
[376543864,1754014171207,-1312.18,0.00021059,2]
[376543865,1754014171229,-571.13,0.00021059,2]
[376543866,1754014171249,-515.09,0.00021059,2]
[376543867,1754014171271,-460.0,0.00021059,2]
[376543868,1754014171291,-460.0,0.00021059,2]
[376543869,1754014171413,-461.52078004,0.00021059,2]
[376543870,1754014171434,-460.0,0.00021059,2]
[376543871,1754014171456,-460.0,0.00021059,2]
[376543872,1754014171476,-460.0,0.00021059,2]
[376543873,1754014171497,-632.03,0.00021059,2]
[376543874,1754014171518,-956.11,0.00021059,2]
[376543875,1754014171540,-1577.97,0.00021059,2]
[376543876,1754014171561,-460.0,0.00021059,2]
[376543877,1754014171581,-460.0,0.00021059,2]
[376543878,1754014171602,-460.0,0.00021059,2]
[376543879,1754014171622,-460.0,0.00021059,2]
[376543880,1754014171642,-3000.0,0.0002106,2]
[376543881,1754014171663,-500.0,0.0002106,2]
[376543882,1754014171683,-3000.0,0.0002107,2]
[376543883,1754014171704,-311.64222353,0.0002107,2]
[376543884,1754014171723,-500.0,0.00021073,2]
[376543885,1754014171742,-500.75588959,0.00021073,2]
[376543886,1754014171761,-500.0,0.00021073,2]
[376543887,1754014171781,-500.0,0.00021073,2]
[376543888,1754014171801,-3000.0,0.0002108,2]
[376543889,1754014171820,-3000.0,0.0002109,2]
[376543890,1754014171840,-3000.0,0.000211,2]
[376543891,1754014171859,-3000.0,0.0002111,2]
[376543892,1754014171879,-272.5,0.00021112,3]
[376543893,1754014171897,-3000.0,0.0002112,2]
[376543894,1754014171917,-3000.0,0.0002113,2]
[376543895,1754014171937,-3000.0,0.0002114,2]
[376543896,1754014171957,-3000.0,0.0002115,2]
[376543897,1754014171976,-3000.0,0.0002116,2]
[376543898,1754014171997,-3000.0,0.0002117,2]
[376543899,1754014172015,-3000.0,0.0002118,2]
[376543900,1754014172035,-3000.0,0.0002119,2]
[376543901,1754014172055,-3000.0,0.000212,2]
[376543902,1754014172075,-460.0,0.00021207,2]
[376543903,1754014172098,-524.04,0.00021207,2]
[376543904,1754014172120,-1788.16,0.00021207,2]
[376543905,1754014172138,-3000.0,0.0002121,2]
[376543906,1754014172158,-3000.0,0.0002122,2]
[376543907,1754014172177,-3000.0,0.0002123,2]
[376543908,1754014172199,-3000.0,0.0002124,2]
[376543909,1754014172226,-3000.0,0.0002125,2]
[376543910,1754014172246,-3000.0,0.0002126,2]
[376543911,1754014172267,-10950.07202722,0.0002126,2]
[376543912,1754014172287,-3000.0,0.0002127,2]
[376543913,1754014172306,-3000.0,0.0002128,2]
[376543914,1754014172327,-460.0,0.00021281,2]
[376543915,1754014172348,-3000.0,0.0002129,2]
[376543916,1754014172370,-2629.49,0.00021292,2]
[376543917,1754014172392,-4792.18,0.00021292,2]
[376543918,1754014172414,-578.56,0.00021292,2]
[376543919,1754014172437,-467.81052889,0.00021292,2]
[376543920,1754014172457,-402.16488372,0.00021292,2]
[376543921,1754014172478,-460.0,0.00021292,2]
[376543922,1754014172498,-2282.47,0.00021292,2]
[376543923,1754014172518,-566.85596669,0.00021292,2]
[376543924,1754014172539,-460.0,0.00021292,2]
[376543925,1754014172559,-460.0,0.00021292,2]
[376543926,1754014172582,-2368.28,0.00021292,2]
[376543927,1754014172603,-460.0,0.00021292,2]
[376543928,1754014172623,-609.28,0.00021292,2]
[376543929,1754014172645,-460.0,0.00021292,2]
[376543930,1754014172666,-3000.0,0.000213,2]
[376543931,1754014172685,-3000.0,0.0002131,2]
[376543932,1754014172708,-3000.0,0.0002132,2]
[376543933,1754014172729,-463.22739435,0.00021323,2]
[376543934,1754014172749,-468.90383749,0.00021323,2]
[376543935,1754014172769,-466.2990322,0.00021323,2]
[376543936,1754014172788,-460.0,0.00021323,2]
[376543937,1754014172809,-308.73596294,0.00021323,2]
[376543938,1754014172828,-460.0,0.00021323,2]
[376543939,1754014172847,-324.42713569,0.00021323,2]
[376543940,1754014172867,-460.0,0.00021323,2]
[376543941,1754014172886,-369.66091617,0.00021323,2]
[376543942,1754014172906,-460.0,0.00021323,2]
[376543943,1754014172927,-193.78633342,0.00021323,2]
[376544047,1754014232134,-457.71,0.000206,2]
[376544049,1754014232144,-460.0,0.00020933,2]
[376544051,1754014232153,-461.44697786,0.00020933,2]
[376544053,1754014232163,-460.0,0.00020933,2]
[376544055,1754014232172,-460.0,0.00020933,2]
[376544057,1754014232182,-176.43405361,0.00020959,2]
[376544059,1754014232192,-4443.87,0.00021007,2]
[376544061,1754014232202,-300.0,0.00021017,2]
[376544063,1754014232214,-517.59,0.00021018,2]
[376544065,1754014232223,-691.51,0.00021018,2]
[376544066,1754014232232,-1612.93,0.00021018,2]
[376544068,1754014232241,-460.0,0.00021018,2]
[376544069,1754014232251,-460.0,0.00021018,2]
[376544071,1754014232260,-460.0,0.00021018,2]
[376544072,1754014232270,-460.0,0.00021049,2]
[376544073,1754014232279,-460.0,0.00021049,2]
[376544074,1754014232289,-462.58489639,0.00021049,2]
[376544075,1754014232298,-461.69270938,0.00021049,2]
[376544076,1754014232307,-633.58,0.00021049,2]
[376544077,1754014232317,-460.0,0.00021049,2]
[376544079,1754014232326,-460.0,0.00021049,2]
[376544081,1754014232335,-460.0,0.00021049,2]
[376544083,1754014232344,-918.59,0.00021049,2]
[376544085,1754014232354,-570.29,0.00021049,2]
[376544087,1754014232363,-460.0,0.00021049,2]
[376544089,1754014232371,-462.66848467,0.00021049,2]
[376544091,1754014232381,-735.82,0.00021049,2]
[376544093,1754014232390,-463.70147264,0.00021049,2]
[376544095,1754014232399,-460.0,0.00021049,2]
[376544097,1754014232408,-521.50691678,0.00021049,2]
[376544099,1754014232417,-463.57624595,0.00021049,2]
[376544101,1754014232426,-317.15923633,0.00021049,2]
[376544103,1754014232435,-460.0,0.00021049,2]
[376544105,1754014232444,-460.0,0.00021049,2]
[376544108,1754014232464,-498.93,0.00021049,2]
[376544110,1754014232474,-500.59,0.00021049,2]
[376544112,1754014232483,-460.0,0.00021049,2]
[376544114,1754014232493,-463.44099817,0.00021049,2]
[376544116,1754014232503,-29829.48475551,0.00021049,2]
[376544118,1754014232513,-460.0,0.00021059,2]
[376544120,1754014232523,-460.0,0.00021059,2]
[376544122,1754014232532,-555.17,0.00021059,2]
[376544124,1754014232542,-1515.29,0.00021059,2]
[376544126,1754014232552,-553.45776716,0.00021207,2]
[376544128,1754014232561,-4443.87,0.00021281,2]
[376544130,1754014232571,-517.59,0.00021292,2]
[376544132,1754014232580,-691.51,0.00021292,2]
[376544134,1754014232590,-1612.93,0.00021292,2]
[376544136,1754014232599,-471.71209296,0.00021292,2]
[376544137,1754014232609,-460.0,0.00021292,2]